fUSD/lending_fUSD_20240217
["ID","MTS","AMOUNT","RATE_DAILY","PERIOD"]
[314266380,1708129839470,-500.0,0.00050273,60]
[314266381,1708129839481,-500.0,0.00050273,60]
[314266382,1708129839491,-500.0,0.00050273,60]
[314266383,1708129839501,-500.0,0.00050273,60]
[314266384,1708129839511,-800.16,0.00050273,60]
[314266385,1708129839520,-500.0,0.00050273,60]
[314266386,1708129839530,-500.0,0.00050273,60]
[314266387,1708129839539,-500.0,0.00050273,60]
[314266388,1708129839549,-520.94,0.00050273,60]
[314266389,1708129839559,-500.0,0.00050273,60]
[314266390,1708129839569,-590.03,0.00050273,60]
[314266391,1708129839578,-500.0,0.00050273,60]
[314266392,1708129839588,-500.0,0.00050273,60]
[314266393,1708129839597,-500.0,0.00050273,60]
[314266394,1708129839607,-522.44,0.00050273,60]
[314266395,1708129839617,-500.0,0.00050273,60]
[314266396,1708129839627,-500.0,0.00050273,60]
[314266397,1708129839636,-500.0,0.00050273,60]
[314266398,1708129839646,-500.0,0.00050273,60]
[314266399,1708129839655,-500.0,0.00050273,60]
[314266400,1708129839665,-500.0,0.00050273,60]
[314266401,1708129839673,-500.0,0.00050273,60]
[314266402,1708129839683,-500.0,0.00050273,60]
[314266403,1708129839692,-898.43,0.00050273,60]
[314266404,1708129839702,-500.0,0.00050273,60]
[314266405,1708129839711,-277.74,0.00050273,60]
[314266406,1708129839721,-500.0,0.00050273,60]
[314266407,1708129839731,-500.0,0.00050273,60]
[314266408,1708129839741,-500.0,0.00050273,60]
[314266409,1708129839750,-500.0,0.00050273,60]
[314266410,1708129839760,-500.0,0.00050273,60]
[314266411,1708129839769,-906.17,0.00050273,60]
[314266412,1708129839779,-500.0,0.00050273,60]
[314266413,1708129839788,-500.0,0.00050273,60]
[314266414,1708129839797,-500.0,0.00050273,60]
[314266415,1708129839807,-3972.3,0.00050273,60]
[314266416,1708129839817,-529.5717738,0.00050273,60]
[314266417,1708129839827,-500.0,0.00050273,60]
[314266418,1708129839837,-522.42,0.00050273,60]
[314266419,1708129839846,-500.0,0.00050273,60]
[314266420,1708129839855,-656.94,0.00050273,60]
[314266421,1708129839864,-500.0,0.00050273,60]
[314266422,1708129839873,-500.0,0.00050273,60]
[314266423,1708129839882,-1056.56,0.00050273,14]
[314266425,1708129839892,-518.87,0.00050273,60]
[314266426,1708129839900,-675.21,0.00050273,60]
[314266427,1708129839910,-2600.75,0.00050273,60]
[314266428,1708129839920,-500.0,0.00050273,2]
[314266429,1708129839929,-500.0,0.00050273,60]
[314266430,1708129839938,-500.0,0.0005041,2]
[314266431,1708129839946,-500.0,0.0005041,60]
[314266432,1708129839955,-500.0,0.0005041,60]
[314266433,1708129839965,-1203.6,0.0005041,60]
[314266434,1708129839975,-500.0,0.0005041,60]
[314266435,1708129839984,-500.0,0.0005041,60]
[314266436,1708129839993,-500.0,0.0005041,60]
[314266437,1708129840002,-1246.43,0.0005041,60]
[314266438,1708129840012,-500.0,0.0005041,60]
[314266439,1708129840025,-1596.32,0.0005041,60]
[314266440,1708129840035,-500.0,0.0005041,60]
[314266441,1708129840044,-322.36,0.0005041,60]
[314266442,1708129840053,-500.0,0.0005041,60]
[314266443,1708129840063,-614.97,0.0005041,60]
[314266444,1708129840072,-4240.9,0.0005041,60]
[314266445,1708129840081,-10798.57,0.0005041,60]
[314266446,1708129840090,-500.0,0.0005041,60]
[314266447,1708129840100,-588.43,0.0005041,60]
[314266448,1708129840110,-350.69,0.0005041,60]
[314266449,1708129840120,-338.82322597,0.0005041,60]
[314266450,1708129840129,-500.0,0.0005041,60]
[314266451,1708129840138,-500.0,0.00050447,60]
[314266452,1708129840146,-500.0,0.00050447,60]
[314266453,1708129840155,-500.0,0.00050447,60]
[314266454,1708129840164,-500.0,0.00050447,60]
[314266455,1708129840175,-500.0,0.00050447,60]
[314266456,1708129840184,-658.42,0.00050447,60]
[314266457,1708129840193,-500.0,0.00050447,60]
[314266458,1708129840202,-855.06,0.00050447,60]
[314266459,1708129840211,-500.0,0.00050447,60]
[314266460,1708129840221,-806.06,0.00050447,60]
[314266461,1708129840230,-500.0,0.00050447,60]
[314266462,1708129840239,-500.0,0.00050447,60]
[314266463,1708129840247,-258.35150813,0.00050447,60]
[314266464,1708129840257,-500.0,0.00050447,60]
[314266465,1708129840266,-500.0,0.00050447,60]
[314266466,1708129840275,-500.0,0.00050547,60]
[314266467,1708129840284,-500.0,0.00050547,60]
[314266468,1708129840294,-500.0,0.00050547,60]
[314266469,1708129840303,-500.0,0.00050547,60]
[314266470,1708129840312,-500.0,0.00050547,60]
[314266471,1708129840322,-500.0,0.00050547,60]
[314266472,1708129840332,-800.16,0.00050547,60]
[314266473,1708129840341,-500.0,0.00050547,60]
[314266474,1708129840354,-215.01665104,0.00050547,60]
[314266475,1708129840364,-500.0,0.00050547,60]
[314266476,1708129840373,-520.94,0.00050547,60]
[314266477,1708129840382,-500.0,0.00050547,60]
[314266478,1708129840391,-590.03,0.00050547,60]
[314266479,1708129840400,-500.0,0.00050547,60]
[314266480,1708129840409,-500.0,0.00050547,60]
[314266481,1708129840420,-500.0,0.00050547,60]
[314266482,1708129840429,-522.44,0.00050547,60]
[314266483,1708129840438,-500.0,0.00050547,60]
[314266484,1708129840448,-500.0,0.00050547,60]
[314266485,1708129840457,-500.0,0.00050547,60]
[314266486,1708129840466,-500.0,0.00050547,60]
[314266487,1708129840475,-500.0,0.00050547,60]
[314266488,1708129840484,-500.0,0.00050547,60]
[314266490,1708129840494,-500.0,0.00050547,60]
[314266492,1708129840503,-415.71008278,0.00050547,60]
[314266493,1708129840512,-898.43,0.00050547,60]
[314266494,1708129840521,-500.0,0.00050547,60]
[314266495,1708129840530,-331.72484161,0.00050547,60]
[314266496,1708129840539,-500.0,0.00050547,60]
[314266497,1708129840548,-500.0,0.00050547,60]
[314266498,1708129840557,-500.0,0.00050547,60]
[314266499,1708129840566,-500.0,0.00050547,60]
[314266500,1708129840575,-906.17,0.00050547,60]
[314266501,1708129840585,-500.0,0.00050547,60]
[314266502,1708129840594,-500.0,0.00050547,60]
[314266503,1708129840604,-500.0,0.00050547,60]
[314266504,1708129840613,-3972.3,0.00050547,60]
[314266505,1708129840622,-500.0,0.00050547,60]
[314266506,1708129840632,-522.42,0.00050547,60]
[314266507,1708129840641,-500.0,0.00050547,60]
[314266508,1708129840652,-656.94,0.00050547,60]
[314266509,1708129840662,-500.0,0.00050547,60]
[314266510,1708129840672,-500.0,0.00050547,60]
[314266511,1708129840682,-1056.56,0.00050547,14]
[314266512,1708129840691,-518.87,0.00050547,60]
[314266513,1708129840701,-675.21,0.00050547,60]
[314266514,1708129840710,-2600.75,0.00050547,60]
[314266515,1708129840719,-500.0,0.00050547,2]
[314266516,1708129840728,-500.0,0.00050547,60]
[314266517,1708129840737,-500.0,0.00050684,2]
[314266518,1708129840746,-500.0,0.00050684,60]
[314266519,1708129840755,-3971.38087,0.00050684,30]
[314266520,1708129840765,-453.96772,0.00050684,120]
[314266521,1708129840774,-907.935431,0.00050684,120]
[314266522,1708129840783,-1588.552348,0.00050684,30]
[314266523,1708129840793,-500.0,0.00050684,60]
[314266524,1708129840803,-1203.6,0.00050684,60]
[314266525,1708129840812,-500.0,0.00050684,60]
[314266526,1708129840821,-500.0,0.00050684,60]
[314266527,1708129840831,-500.0,0.00050684,60]
[314266528,1708129840840,-1246.43,0.00050684,60]
[314266529,1708129840849,-500.0,0.00050684,60]
[314266530,1708129840859,-3631.741725,0.00050684,120]
[314266531,1708129840868,-9148.266668,0.00050684,30]
[314266532,1708129840877,-1596.32,0.00050684,60]
[314266533,1708129840886,-500.0,0.00050684,60]
[314266534,1708129840895,-500.0,0.00050684,60]
[314266535,1708129840905,-614.97,0.00050684,60]
[314266536,1708129840914,-4240.9,0.00050684,60]
[314266537,1708129840924,-10798.57,0.00050684,60]
[314266538,1708129840933,-476.12353809,0.00050684,60]
[314266539,1708129840943,-588.43,0.00050684,60]
[314266540,1708129840952,-500.0,0.00050684,60]
[314266541,1708129840961,-500.0,0.00050721,60]
[314266542,1708129840970,-500.0,0.00050721,60]
[314266543,1708129840979,-500.0,0.00050721,60]
[314266544,1708129840988,-500.0,0.00050721,60]
[314266545,1708129840998,-500.0,0.00050721,60]
[314266546,1708129841007,-658.42,0.00050721,60]
[314266547,1708129841017,-500.0,0.00050721,60]
[314266548,1708129841027,-855.06,0.00050721,60]
[314266549,1708129841037,-500.0,0.00050721,60]
[314266550,1708129841046,-806.06,0.00050721,60]
[314266551,1708129841055,-215.3718118,0.00050721,2]
[314266552,1708129841065,-500.0,0.00050721,60]
[314266553,1708129841074,-500.0,0.00050721,60]
[314266554,1708129841083,-500.0,0.00050721,60]
[314266555,1708129841094,-500.0,0.00050721,60]
[314266556,1708129841104,-67495.5587719,0.00050811,12]
[314266557,1708129841114,-500.0,0.00050821,60]
[314266558,1708129841123,-500.0,0.00050821,60]
[314266559,1708129841132,-440.27,0.00050821,60]
[314266560,1708129841141,-500.0,0.00050821,60]
[314266561,1708129841151,-500.0,0.00050821,60]
[314266562,1708129841160,-500.0,0.00050821,60]
[314266563,1708129841171,-800.16,0.00050821,60]
[314266564,1708129841180,-500.0,0.00050821,60]
[314266565,1708129841189,-500.0,0.00050821,60]
[314266566,1708129841199,-520.94,0.00050821,60]
[314266567,1708129841208,-500.0,0.00050821,60]
[314266568,1708129841217,-590.03,0.00050821,60]
[314266569,1708129841227,-500.0,0.00050821,60]
[314266570,1708129841236,-500.0,0.00050821,60]
[314266571,1708129841246,-500.0,0.00050821,60]
[314266572,1708129841257,-522.44,0.00050821,60]
[314266573,1708129841267,-500.0,0.00050821,60]
[314266574,1708129841276,-500.0,0.00050821,60]
[314266575,1708129841285,-500.0,0.00050821,60]
[314266576,1708129841295,-500.0,0.00050821,60]
[314266577,1708129841305,-500.0,0.00050821,60]
[314266578,1708129841314,-500.0,0.00050821,60]
[314266579,1708129841323,-500.0,0.00050821,60]
[314266580,1708129841332,-898.43,0.00050821,60]
[314266581,1708129841342,-500.0,0.00050821,60]
[314266582,1708129841352,-360.22666298,0.00050821,60]
[314266583,1708129841362,-500.0,0.00050821,60]
[314266584,1708129841372,-500.0,0.00050821,60]
[314266585,1708129841381,-500.0,0.00050821,60]
[314266586,1708129841390,-906.17,0.00050821,60]
[314266587,1708129841399,-500.0,0.00050821,60]
[314266588,1708129841408,-500.0,0.00050821,60]
[314266589,1708129841418,-500.0,0.00050821,60]
[314266590,1708129841428,-3972.3,0.00050821,60]
[314266591,1708129841437,-500.0,0.00050821,60]
[314266592,1708129841448,-522.42,0.00050821,60]
[314266593,1708129841459,-500.0,0.00050821,60]
[314266594,1708129841470,-656.94,0.00050821,60]
[314266595,1708129841479,-500.0,0.00050821,60]
[314266596,1708129841488,-500.0,0.00050821,60]
[314266597,1708129841498,-1056.56,0.00050821,14]
[314266598,1708129841506,-518.87,0.00050821,60]
[314266599,1708129841516,-675.21,0.00050821,60]
[314266600,1708129841525,-2600.75,0.00050821,60]
[314266601,1708129841535,-500.0,0.00050821,2]
[314266602,1708129841544,-500.0,0.00050821,60]
[314266603,1708129841553,-1532.23215434,0.00050857,14]
[314266604,1708129841563,-313.74,0.000509,2]
[314266605,1708129841572,-500.0,0.00050958,2]
[314266606,1708129841581,-500.0,0.00050958,60]
[314266607,1708129841590,-500.0,0.00050958,60]
[314266608,1708129841599,-1203.6,0.00050958,60]
[314266610,1708129841609,-500.0,0.00050958,60]
[314266612,1708129841618,-500.0,0.00050958,60]
[314266614,1708129841627,-500.0,0.00050958,60]
[314266616,1708129841636,-1246.43,0.00050958,60]
[314266617,1708129841646,-500.0,0.00050958,60]
[314266618,1708129841654,-1596.32,0.00050958,60]
[314266622,1708129841692,-500.0,0.00050958,60]
[314266623,1708129841701,-500.0,0.00050958,60]
[314266624,1708129841711,-614.97,0.00050958,60]
[314266625,1708129841720,-4240.9,0.00050958,60]
[314266626,1708129841730,-10798.57,0.00050958,60]
[314266627,1708129841739,-588.43,0.00050958,60]
[314266628,1708129841748,-500.0,0.00050958,60]
[314266629,1708129841758,-200.0,0.00050988,30]
[314266630,1708129841766,-500.0,0.00050995,60]
[314266631,1708129841776,-500.0,0.00050995,60]
[314266632,1708129841785,-500.0,0.00050995,60]
[314266633,1708129841795,-500.0,0.00050995,60]
[314266634,1708129841804,-500.0,0.00050995,60]
[314266635,1708129841816,-658.42,0.00050995,60]
[314266636,1708129841825,-500.0,0.00050995,60]
[314266637,1708129841835,-855.06,0.00050995,60]
[314266638,1708129841845,-500.0,0.00050995,60]
[314266639,1708129841856,-806.06,0.00050995,60]
[314266640,1708129841867,-500.0,0.00050995,60]
[314266641,1708129841876,-500.0,0.00050995,60]
[314266642,1708129841886,-500.0,0.00050995,60]
[314266643,1708129841896,-500.0,0.00050995,60]
[314266644,1708129841905,-500.0,0.00051095,60]
[314266645,1708129841914,-500.0,0.00051095,60]
[314266646,1708129841924,-500.0,0.00051095,60]
[314266647,1708129841933,-256.7,0.00051095,60]
[314266648,1708129841943,-500.0,0.00051095,60]
[314266649,1708129841955,-800.16,0.00051095,60]
[314266650,1708129841966,-500.0,0.00051095,60]
[314266651,1708129841975,-249.17765205,0.00051095,60]
[314266652,1708129841984,-520.94,0.00051095,60]
[314266653,1708129841995,-500.0,0.00051095,60]
[314266654,1708129842005,-590.03,0.00051095,60]
[314266655,1708129842015,-500.0,0.00051095,60]
[314266656,1708129842024,-500.0,0.00051095,60]
[314266657,1708129842036,-522.44,0.00051095,60]
[314266658,1708129842045,-364.77,0.00051095,60]
[314266659,1708129842054,-500.0,0.00051095,60]
[314266660,1708129842064,-500.0,0.00051095,60]
[314266661,1708129842073,-500.0,0.00051095,60]
[314266662,1708129842081,-500.0,0.00051095,60]
[314266663,1708129842090,-500.0,0.00051095,60]
[314266664,1708129842099,-500.0,0.00051095,60]
[314266665,1708129842109,-500.0,0.00051095,60]
[314266666,1708129842119,-898.43,0.00051095,60]
[314266667,1708129842128,-500.0,0.00051095,60]
[314266668,1708129842137,-500.0,0.00051095,60]
[314266669,1708129842146,-500.0,0.00051095,60]
[314266670,1708129842155,-500.0,0.00051095,60]
[314266671,1708129842165,-906.17,0.00051095,60]
[314266672,1708129842174,-500.0,0.00051095,60]
[314266673,1708129842183,-500.0,0.00051095,60]
[314266674,1708129842192,-339.63,0.00051095,60]
[314266675,1708129842202,-3972.3,0.00051095,60]
[314266676,1708129842210,-500.0,0.00051095,60]
[314266677,1708129842219,-522.42,0.00051095,60]
[314266678,1708129842229,-500.0,0.00051095,60]
[314266679,1708129842238,-656.94,0.00051095,60]
[314266680,1708129842247,-500.0,0.00051095,60]
[314266681,1708129842256,-500.0,0.00051095,60]
[314266682,1708129842265,-1056.56,0.00051095,14]
[314266683,1708129842274,-518.87,0.00051095,60]
[314266684,1708129842283,-675.21,0.00051095,60]
[314266685,1708129842292,-2600.75,0.00051095,60]
[314266686,1708129842301,-500.0,0.00051095,2]
[314266687,1708129842309,-500.0,0.00051095,60]
[314266688,1708129842318,-612.31205619,0.00051232,2]
[314266689,1708129842328,-500.0,0.00051232,60]
[314266690,1708129842338,-500.0,0.00051232,60]
[314266691,1708129842347,-1203.6,0.00051232,60]
[314266692,1708129842356,-500.0,0.00051232,60]
[314266693,1708129842365,-500.0,0.00051232,60]
[314266694,1708129842374,-500.0,0.00051232,60]
[314266695,1708129842383,-1246.43,0.00051232,60]
[314266696,1708129842392,-500.0,0.00051232,60]
[314266697,1708129842401,-1596.32,0.00051232,60]
[314266698,1708129842410,-500.0,0.00051232,60]
[314266699,1708129842419,-500.0,0.00051232,60]
[314266700,1708129842428,-614.97,0.00051232,60]
[314266701,1708129842438,-4240.9,0.00051232,60]
[314266702,1708129842447,-10798.57,0.00051232,60]
[314266703,1708129842456,-588.43,0.00051232,60]
[314266704,1708129842465,-500.0,0.00051232,60]
[314266705,1708129842474,-500.0,0.00051269,60]
[314266706,1708129842483,-500.0,0.00051269,60]
[314266707,1708129842492,-500.0,0.00051269,60]
[314266708,1708129842501,-500.0,0.00051269,60]
[314266709,1708129842510,-500.0,0.00051269,60]
[314266710,1708129842520,-658.42,0.00051269,60]
[314266711,1708129842529,-500.0,0.00051269,60]
[314266712,1708129842539,-855.06,0.00051269,60]
[314266713,1708129842548,-500.0,0.00051269,60]
[314266714,1708129842557,-806.06,0.00051269,60]
[314266715,1708129842571,-500.0,0.00051269,60]
[314266716,1708129842609,-500.0,0.00051269,60]
[314266717,1708129842618,-500.0,0.00051269,60]
[314266718,1708129842628,-500.0,0.00051269,60]
[314266719,1708129842637,-324.89,0.00051369,60]
[314266720,1708129842646,-564.07,0.00051369,60]
[314266721,1708129842655,-500.0,0.00051369,60]
[314266722,1708129842664,-500.0,0.00051369,60]
[314266723,1708129842674,-800.16,0.00051369,60]
[314266724,1708129842684,-500.0,0.00051369,60]
[314266725,1708129842693,-520.94,0.00051369,60]
[314266726,1708129842702,-565.18065638,0.00051369,60]
[314266727,1708129842711,-590.03,0.00051369,60]
[314266728,1708129842721,-500.0,0.00051369,60]
[314266729,1708129842730,-500.0,0.00051369,60]
[314266730,1708129842739,-522.44,0.00051369,60]
[314266731,1708129842748,-500.0,0.00051369,60]
[314266732,1708129842757,-500.0,0.00051369,60]
[314266733,1708129842766,-500.0,0.00051369,60]
[314266734,1708129842775,-500.0,0.00051369,60]
[314266735,1708129842785,-500.0,0.00051369,60]
[314266736,1708129842794,-481.9,0.00051369,60]
[314266737,1708129842803,-509.7690238,0.00051369,60]
[314266738,1708129842813,-898.43,0.00051369,60]
[314266739,1708129842822,-500.0,0.00051369,60]
[314266740,1708129842831,-500.0,0.00051369,60]
[314266742,1708129842840,-500.0,0.00051369,60]
[314266743,1708129842850,-500.0,0.00051369,60]
[314266745,1708129842859,-906.17,0.00051369,60]
[314266746,1708129842867,-500.0,0.00051369,60]
[314266747,1708129842876,-500.0,0.00051369,60]
[314266748,1708129842885,-3972.3,0.00051369,60]
[314266749,1708129842894,-500.0,0.00051369,60]
[314266751,1708129842903,-522.42,0.00051369,60]
[314266753,1708129842912,-500.0,0.00051369,60]
[314266755,1708129842922,-500.0,0.00051369,60]
[314266756,1708129842930,-656.94,0.00051369,60]
[314266757,1708129842939,-500.0,0.00051369,60]
[314266758,1708129842948,-1056.56,0.00051369,14]
[314266759,1708129842957,-518.87,0.00051369,60]
[314266761,1708129842965,-675.21,0.00051369,60]
[314266763,1708129842974,-2600.75,0.00051369,60]
[314266765,1708129842983,-500.0,0.00051369,2]
[314266766,1708129842991,-500.0,0.00051369,60]
[314266768,1708129843001,-5000.0,0.00051443,7]
[314266770,1708129843010,-5000.0,0.000515,60]
[314266772,1708129843019,-3000.0,0.000515,45]
[314266774,1708129843028,-1000.0,0.000515,2]
[314266775,1708129843038,-3000.0,0.000515,45]
[314266777,1708129843047,-5000.0,0.000515,60]
[314266779,1708129843056,-3000.0,0.000515,45]
[314266781,1708129843065,-5000.0,0.000515,60]
[314266783,1708129843074,-3000.0,0.000515,45]
[314266784,1708129843083,-5000.0,0.000515,60]
[314266786,1708129843092,-500.0,0.00051506,60]
[314266788,1708129843101,-397.138087,0.00051506,30]
[314266790,1708129843112,-500.0,0.00051506,60]
[314266792,1708129843120,-1203.6,0.00051506,60]
[314266794,1708129843129,-500.0,0.00051506,60]
[314266796,1708129843138,-500.0,0.00051506,60]
[314266798,1708129843147,-500.0,0.00051506,60]
[314266800,1708129843156,-1246.43,0.00051506,60]
[314266801,1708129843165,-500.0,0.00051506,60]
[314266804,1708129843177,-2287.066667,0.00051506,30]
[314266805,1708129843186,-1596.32,0.00051506,60]
[314266807,1708129843195,-500.0,0.00051506,60]
[314266809,1708129843204,-500.0,0.00051506,60]
[314266811,1708129843213,-614.97,0.00051506,60]
[314266813,1708129843221,-4240.9,0.00051506,60]
[314266815,1708129843230,-10798.57,0.00051506,60]
[314266817,1708129843239,-588.43,0.00051506,60]
[314266818,1708129843248,-500.0,0.00051506,60]
[314266819,1708129843257,-500.0,0.00051543,60]
[314266820,1708129843265,-500.0,0.00051543,60]
[314266821,1708129843275,-500.0,0.00051543,60]
[314266822,1708129843283,-500.0,0.00051543,60]
[314266823,1708129843292,-500.0,0.00051543,60]
[314266825,1708129843301,-658.42,0.00051543,60]
[314266826,1708129843310,-500.0,0.00051543,60]
[314266827,1708129843319,-855.06,0.00051543,60]
[314266828,1708129843329,-500.0,0.00051543,60]
[314266829,1708129843338,-806.06,0.00051543,60]
[314266830,1708129843347,-500.0,0.00051543,60]
[314266831,1708129843355,-483.15,0.00051543,60]
[314266833,1708129843364,-500.0,0.00051543,60]
[314266835,1708129843373,-500.0,0.00051543,60]
[314266837,1708129843382,-434.31,0.000516,2]
[314266839,1708129843391,-265.96,0.00051643,60]
[314266841,1708129843399,-500.0,0.00051643,60]
[314266844,1708129843408,-800.16,0.00051643,60]
[314266846,1708129843418,-500.0,0.00051643,60]
[314266847,1708129843427,-520.94,0.00051643,60]
[314266848,1708129843436,-590.03,0.00051643,60]
[314266849,1708129843445,-500.0,0.00051643,60]
[314266850,1708129843454,-500.0,0.00051643,60]
[314266851,1708129843462,-522.44,0.00051643,60]
[314266852,1708129843471,-500.0,0.00051643,60]
[314266853,1708129843479,-500.0,0.00051643,60]
[314266854,1708129843488,-500.0,0.00051643,60]
[314266855,1708129843497,-372.07587606,0.00051643,60]
[314266856,1708129843506,-500.0,0.00051643,60]
[314266857,1708129843515,-898.43,0.00051643,60]
[314266858,1708129843523,-222.71,0.00051643,60]
[314266860,1708129843532,-408.49,0.00051643,60]
[314266861,1708129843541,-500.0,0.00051643,60]
[314266863,1708129843550,-500.0,0.00051643,60]
[314266865,1708129843559,-906.17,0.00051643,60]
[314266867,1708129843568,-500.0,0.00051643,60]
[314266869,1708129843577,-500.0,0.00051643,60]
[314266871,1708129843586,-3972.3,0.00051643,60]
[314266873,1708129843595,-500.0,0.00051643,60]
[314266875,1708129843604,-522.42,0.00051643,60]
[314266877,1708129843614,-500.0,0.00051643,60]
[314266879,1708129843623,-500.0,0.00051643,60]
[314266881,1708129843632,-656.94,0.00051643,60]
[314266883,1708129843641,-504.15,0.00051643,60]
[314266885,1708129843650,-1056.56,0.00051643,14]
[314266887,1708129843658,-518.87,0.00051643,60]
[314266889,1708129843668,-675.21,0.00051643,60]
[314266891,1708129843677,-2600.75,0.00051643,60]
[314266893,1708129843686,-500.0,0.00051643,2]
[314266895,1708129843695,-500.0,0.00051643,60]
[314266897,1708129843704,-67495.5587719,0.00051669,12]
[314266899,1708129843713,-500.0,0.00051778,2]
[314266900,1708129843722,-500.0,0.00051778,2]
[314266902,1708129843731,-500.0,0.00051778,2]
[314266904,1708129843740,-500.0,0.00051778,2]
[314266906,1708129843749,-500.0,0.00051778,2]
[314266908,1708129843758,-500.0,0.00051778,2]
[314266910,1708129843767,-500.0,0.00051778,2]
[314266912,1708129843775,-500.0,0.00051778,2]
[314266913,1708129843784,-500.0,0.00051778,2]
[314266915,1708129843793,-500.0,0.00051778,2]
[314266917,1708129843802,-500.0,0.00051778,2]
[314266919,1708129843811,-500.0,0.00051778,2]
[314266921,1708129843820,-500.0,0.00051778,2]
[314266923,1708129843829,-500.0,0.00051778,2]
[314266925,1708129843837,-500.0,0.00051778,2]
[314266927,1708129843846,-500.0,0.00051778,2]
[314266929,1708129843855,-500.0,0.00051778,2]
[314266931,1708129843863,-500.0,0.00051778,2]
[314266933,1708129843872,-500.0,0.00051778,2]
[314266935,1708129843881,-500.0,0.00051778,2]
[314266937,1708129843890,-500.0,0.00051778,2]
[314266939,1708129843898,-500.0,0.00051778,2]
[314266940,1708129843907,-500.0,0.00051778,2]
[314266942,1708129843916,-500.0,0.00051778,2]
[314266944,1708129843925,-500.0,0.00051778,2]
[314266946,1708129843934,-500.0,0.00051778,2]
[314266948,1708129843943,-500.0,0.00051778,2]
[314266950,1708129843952,-500.0,0.00051778,2]
[314266952,1708129843962,-500.0,0.00051778,2]
[314266954,1708129843971,-500.0,0.00051778,2]
[314266956,1708129843981,-500.0,0.00051778,2]
[314266958,1708129843990,-500.0,0.00051778,2]
[314266960,1708129843999,-500.0,0.00051778,2]
[314266962,1708129844008,-500.0,0.00051778,2]
[314266964,1708129844017,-500.0,0.00051778,2]
[314266966,1708129844026,-500.0,0.00051778,2]
[314266968,1708129844038,-500.0,0.00051778,2]
[314266970,1708129844047,-500.0,0.00051778,2]
[314266972,1708129844056,-500.0,0.00051778,2]
[314266974,1708129844064,-500.0,0.00051778,2]
[314266976,1708129844077,-500.0,0.00051778,2]
[314266978,1708129844086,-500.0,0.00051778,2]
[314266980,1708129844095,-500.0,0.00051778,2]
[314266982,1708129844105,-500.0,0.00051778,2]
[314266984,1708129844115,-500.0,0.00051778,2]
[314266986,1708129844124,-500.0,0.00051779,2]
[314266988,1708129844133,-500.0,0.00051779,2]
[314266990,1708129844143,-500.0,0.00051779,2]
[314266992,1708129844151,-500.0,0.00051779,2]
[314266994,1708129844160,-500.0,0.00051779,2]
[314266996,1708129844170,-500.0,0.00051779,2]
[314266997,1708129844179,-500.0,0.00051779,2]